fUSD/lending_fUSD_20260322
["ID","MTS","AMOUNT","RATE_DAILY","PERIOD"]
[408750687,1774192250388,-500.0,0.00015999,2]
[408750688,1774192250397,-500.0,0.00015999,2]
[408750689,1774192250406,-500.0,0.00015999,2]
[408750690,1774192250415,-500.0,0.00015999,2]
[408750691,1774192250424,-437.36106336,0.00015999,2]
[408750692,1774192250434,-2227.58,0.00015999,2]
[408750693,1774192250443,-2227.58,0.00015999,2]
[408750694,1774192250453,-2227.58,0.00015999,2]
[408750695,1774192250462,-2227.58,0.00015999,2]
[408750696,1774192250471,-2227.58,0.00015999,2]
[408750697,1774192250480,-2227.58,0.00015999,2]
[408750698,1774192250489,-2227.58,0.00015999,2]
[408750699,1774192250504,-2227.58,0.00015999,2]
[408750700,1774192250513,-2227.58,0.00015999,2]
[408750701,1774192250523,-2227.58,0.00015999,2]
[408750702,1774192250532,-2227.58,0.00015999,2]
[408750703,1774192250541,-2227.58,0.00015999,2]
[408750704,1774192250550,-500.0,0.00015999,2]
[408750705,1774192250559,-500.0,0.00015999,2]
[408750706,1774192250569,-500.0,0.00015999,2]
[408750707,1774192250578,-500.0,0.00015999,2]
[408750708,1774192250587,-500.0,0.00015999,2]
[408750709,1774192250596,-529.42180418,0.00015999,2]
[408750710,1774192250607,-2227.67,0.00015999,2]
[408750711,1774192250617,-500.0,0.00015999,2]
[408750712,1774192250627,-500.0,0.00015999,2]
[408750713,1774192250636,-500.0,0.00015999,2]
[408750714,1774192250647,-500.0,0.00015999,2]
[408750715,1774192250658,-500.0,0.00015999,2]
[408750716,1774192250667,-500.0,0.00015999,2]
[408750717,1774192250676,-604.51450435,0.00015999,2]
[408750718,1774192250687,-522.93,0.00015999,2]
[408750719,1774192250696,-522.93,0.00015999,2]
[408750720,1774192250707,-522.93,0.00015999,2]
[408750721,1774192250717,-522.93,0.00015999,2]
[408750722,1774192250727,-522.93,0.00015999,2]
[408750723,1774192250737,-522.93,0.00015999,2]
[408750724,1774192250746,-522.93,0.00015999,2]
[408750725,1774192250756,-522.93,0.00015999,2]
[408750726,1774192250765,-522.93,0.00015999,2]
[408750727,1774192250774,-522.93,0.00015999,2]
[408750728,1774192250783,-522.93,0.00015999,2]
[408750729,1774192250793,-522.93,0.00015999,2]
[408750730,1774192250802,-522.93077841,0.00015999,2]
[408750731,1774192250812,-381.29261021,0.00015999,2]
[408750732,1774192250822,-150.0,0.00015999,2]
[408750733,1774192250831,-293.37404714,0.00015999,2]
[408750734,1774192250841,-150.0,0.00015999,2]
[408750735,1774192250851,-2008190.93823281,0.00016,2]
[408750736,1774192250860,-147472.61866943,0.00016,2]
[408750737,1774192252892,-6332.407382,0.00016,2]
[408750738,1774192252905,-500.0,0.00016,2]
[408750739,1774192252924,-291.2177094,0.00016,2]
[408750740,1774192253209,-3163.04579969,0.0001015,2]
[408750741,1774192253218,-1915.51465977,0.00010242,2]
[408750742,1774192253301,-3200.0,0.00010242,2]
[408750743,1774192253316,-15478.83920229,0.00010242,2]
[408750744,1774192253328,-2243.37561959,0.00010242,2]
[408750745,1774192253535,-515.0,0.00010059,2]
[408750746,1774192253546,-8162.29787611,0.00010242,2]
[408750747,1774192253585,-312.3353603,0.00010242,2]
[408750748,1774192253596,-1672.54438194,0.00010242,2]
[408750749,1774192253606,-247.0,0.00010243,2]
[408750750,1774192253615,-429.0,0.00010264,2]
[408750751,1774192253624,-319.0,0.00010284,2]
[408750752,1774192253634,-231.0,0.00010305,2]
[408750753,1774192253643,-334.36,0.00011777,2]
[408750754,1774192253653,-342.48282919,0.00013698,2]
[408750755,1774192253663,-342.48282919,0.00013698,2]
[408750756,1774192253673,-312.62631359,0.00013698,2]
[408750757,1774192253683,-334.36,0.00014067,2]
[408750758,1774192253693,-334.36,0.00015033,2]
[408750759,1774192253703,-1000.0,0.000157,2]
[408750760,1774192253713,-1000.0,0.000157,2]
[408750761,1774192253723,-9745.28030057,0.00016,2]
[408750762,1774192253733,-3624.9965698,0.00016,2]
[408750763,1774192253743,-200.0,0.00016,2]
[408750764,1774192253752,-151.0,0.00016,2]
[408750765,1774192253761,-204.503956,0.00016,2]
[408750766,1774192253771,-204.503956,0.00016,2]
[408750767,1774192253780,-204.503956,0.00016,2]
[408750768,1774192253790,-204.503956,0.00016,2]
[408750769,1774192253799,-200.0,0.00016,2]
[408750770,1774192253809,-151.0,0.00016,2]
[408750771,1774192253819,-156.180321,0.00016,2]
[408750772,1774192253829,-151.0,0.00016,2]
[408750773,1774192253839,-151.0,0.00016,2]
[408750774,1774192253849,-151.0,0.00016,2]
[408750775,1774192253858,-151.0,0.00016,2]
[408750776,1774192253868,-151.0,0.00016,2]
[408750777,1774192253877,-151.0,0.00016,2]
[408750778,1774192253887,-151.0,0.00016,2]
[408750779,1774192253896,-151.0,0.00016,2]
[408750780,1774192253905,-151.0,0.00016,2]
[408750781,1774192253914,-151.0,0.00016,2]
[408750782,1774192253923,-200.0,0.00016,2]
[408750783,1774192253932,-1796.638819,0.00016,2]
[408750784,1774192253942,-1796.638819,0.00016,2]
[408750785,1774192253951,-1796.638819,0.00016,2]
[408750786,1774192253960,-1796.638819,0.00016,2]
[408750787,1774192253969,-151.0,0.00016,2]
[408750788,1774192253981,-416.039852,0.00016,2]
[408750789,1774192253991,-416.039852,0.00016,2]
[408750790,1774192254000,-416.039852,0.00016,2]
[408750791,1774192254010,-416.039852,0.00016,2]
[408750792,1774192254020,-258.349245,0.00016,2]
[408750793,1774192254030,-258.349245,0.00016,2]
[408750794,1774192254039,-258.349245,0.00016,2]
[408750795,1774192254048,-258.349245,0.00016,2]
[408750796,1774192254058,-217.43278,0.00016,2]
[408750797,1774192254067,-217.43279,0.00016,2]
[408750798,1774192254076,-217.43278,0.00016,2]
[408750799,1774192254085,-217.43278,0.00016,2]
[408750800,1774192254094,-777.09275,0.00016,2]
[408750801,1774192254104,-777.09275,0.00016,2]
[408750802,1774192254113,-777.09275,0.00016,2]
[408750803,1774192254123,-777.09275,0.00016,2]
[408750804,1774192254134,-777.09276,0.00016,2]
[408750805,1774192254143,-217.43278,0.00016,2]
[408750806,1774192254151,-777.09275,0.00016,2]
[408750807,1774192254160,-151.0,0.00016,2]
[408750808,1774192254170,-159.820884,0.00016,2]
[408750809,1774192254179,-200.0,0.00016,2]
[408750810,1774192254188,-435.08387187,0.00016,2]
[408750811,1774192254198,-906.383334,0.00016,2]
[408750812,1774192254206,-906.383334,0.00016,2]
[408750813,1774192254215,-906.383334,0.00016,2]
[408750814,1774192254225,-906.383334,0.00016,2]
[408750815,1774192254234,-1133.822945,0.00016,2]
[408750816,1774192254244,-1133.822945,0.00016,2]
[408750817,1774192254253,-1133.822945,0.00016,2]
[408750818,1774192254262,-1133.822945,0.00016,2]
[408750819,1774192254272,-6453.0,0.00016047,2]
[408750820,1774192254282,-151.0,0.00016048,2]
[408750821,1774192254291,-225.18697532,0.00016048,2]
[408750822,1774192254305,-200.0,0.00016048,2]
[408750823,1774192254315,-194.72792766,0.00016048,2]
[408750824,1774192254324,-829.12830338,0.00016048,2]
[408750825,1774192254333,-745.65223616,0.00016048,2]
[408750826,1774192254345,-312.13772435,0.00016048,2]
[408750827,1774192254355,-1613.0,0.00016049,2]
[408750828,1774192254364,-222.91,0.00016077,2]
[408750829,1774192254375,-491.0,0.00016093,2]
[408750830,1774192254384,-1744.06,0.000161,2]
[408750831,1774192254394,-435.08387187,0.000161,2]
[408750832,1774192254403,-2000.0,0.00016101,2]
[408750833,1774192254412,-500.0,0.00016115,2]
[408750834,1774192254425,-4512.07329754,0.00016116,2]
[408750835,1774192254438,-5487.91670246,0.00016116,2]
[408750836,1774192254448,-500.0,0.00016129,3]
[408750837,1774192254458,-1028.08329754,0.00016143,2]
[408750838,1774192254469,-4522.91670246,0.00016143,2]
[408750839,1774192254479,-222.91,0.00016154,2]
[408750840,1774192254490,-200.0,0.0001616,2]
[408750841,1774192254501,-200.0,0.0001616,2]
[408750842,1774192254510,-200.0,0.0001616,2]
[408750843,1774192254523,-491.0,0.00016175,2]
[408750844,1774192254533,-5000.00221546,0.000162,5]
[408750845,1774192254544,-435.08387187,0.000162,2]
[408750846,1774192254555,-1521.0,0.000162,2]
[408750847,1774192254564,-1521.0,0.000162,2]
[408750848,1774192254574,-151.0,0.000162,2]
[408750849,1774192254584,-160.0,0.000162,2]
[408750850,1774192254593,-1521.0,0.000162,2]
[408750851,1774192254603,-151.0,0.000162,2]
[408750852,1774192254620,-160.0,0.000162,2]
[408750853,1774192254630,-1521.0,0.000162,2]
[408750854,1774192254640,-151.0,0.000162,2]
[408750855,1774192254649,-151.0,0.000162,2]
[408750856,1774192254658,-1521.0,0.000162,2]
[408750857,1774192254668,-153.78487307,0.000162,2]
[408750858,1774192254678,-1521.0,0.000162,2]
[408750859,1774192254687,-164.74526196,0.000162,2]
[408750860,1774192254698,-1521.0,0.000162,2]
[408750861,1774192254707,-1521.0,0.000162,2]
[408750862,1774192254716,-1521.0,0.000162,2]
[408750863,1774192254725,-1521.0,0.000162,2]
[408750864,1774192254735,-1521.0,0.000162,2]
[408750865,1774192254744,-441.788209,0.000162,2]
[408750866,1774192254753,-5551.0,0.00016211,2]
[408750867,1774192254763,-222.91,0.00016231,2]
[408750868,1774192254772,-188.02553443,0.00016237,2]
[408750869,1774192254782,-156.0,0.00016244,3]
[408750870,1774192254791,-491.0,0.00016258,2]
[408750871,1774192254800,-166.66,0.00016278,2]
[408750872,1774192254809,-4000.0,0.00016282,2]
[408750873,1774192254822,-168.17,0.00016288,2]
[408750874,1774192254832,-168.17,0.00016288,2]
[408750875,1774192254841,-5551.0,0.00016299,2]
[408750876,1774192254851,-2696.6,0.000163,2]
[408750877,1774192254861,-491.0,0.00016308,2]
[408750878,1774192254870,-491.0,0.0001631,2]
[408750879,1774192254880,-200.0,0.00016322,2]
[408750880,1774192254889,-200.0,0.00016322,2]
[408750881,1774192254898,-200.0,0.00016322,2]
[408750882,1774192254908,-491.0,0.00016379,2]
[408750883,1774192254917,-150.0,0.00016389,2]
[408750884,1774192254926,-491.0,0.00016435,2]
[408750885,1774192254936,-150.0,0.00016436,2]
[408750886,1774192254945,-500.0,0.00016437,2]
[408750887,1774192254955,-202.88423595,0.00016438,2]
[408750888,1774192254964,-608.0,0.00016438,2]
[408750889,1774192254974,-608.0,0.00016438,2]
[408750890,1774192254983,-608.0,0.00016438,2]
[408750891,1774192254993,-608.0,0.00016438,2]
[408750892,1774192255002,-608.0,0.00016438,2]
[408750893,1774192255011,-608.0,0.00016438,2]
[408750894,1774192255020,-608.0,0.00016438,2]
[408750895,1774192255029,-608.0,0.00016438,2]
[408750896,1774192255038,-608.0,0.00016438,2]
[408750897,1774192255048,-608.0,0.00016438,2]
[408750898,1774192255057,-608.0,0.00016438,2]
[408750899,1774192255066,-608.0,0.00016438,2]
[408750900,1774192255075,-608.0,0.00016438,2]
[408750901,1774192255085,-608.0,0.00016438,2]
[408750902,1774192255094,-608.0,0.00016438,2]
[408750903,1774192255103,-608.0,0.00016438,2]
[408750904,1774192255113,-608.0,0.00016438,2]
[408750905,1774192255122,-608.0,0.00016438,2]
[408750906,1774192255131,-608.0,0.00016438,2]
[408750907,1774192255140,-608.0,0.00016438,2]
[408750908,1774192255149,-608.0,0.00016438,2]
[408750909,1774192255158,-608.0,0.00016438,2]
[408750910,1774192255167,-608.0,0.00016438,2]
[408750911,1774192255177,-620.51459402,0.00016438,2]
[408750912,1774192255187,-500.0,0.00016438,2]
[408750913,1774192255196,-500.0,0.00016438,2]
[408750914,1774192255206,-500.0,0.00016438,2]
[408750915,1774192255216,-500.0,0.00016438,2]
[408750916,1774192255226,-500.0,0.00016438,2]
[408750917,1774192255235,-500.0,0.00016438,2]
[408750918,1774192255245,-500.0,0.00016438,2]
[408750919,1774192255254,-500.0,0.00016438,2]
[408750920,1774192255264,-500.0,0.00016438,2]
[408750921,1774192255273,-500.0,0.00016438,2]
[408750922,1774192255282,-500.0,0.00016438,2]
[408750923,1774192255291,-500.0,0.00016438,2]
[408750924,1774192255306,-500.0,0.00016438,2]
[408750925,1774192255315,-500.0,0.00016438,2]
[408750926,1774192255324,-500.0,0.00016438,2]
[408750927,1774192255332,-500.0,0.00016438,2]
[408750928,1774192255342,-500.0,0.00016438,2]
[408750929,1774192255350,-500.0,0.00016438,2]
[408750930,1774192255359,-500.0,0.00016438,2]
[408750931,1774192255370,-500.0,0.00016438,2]
[408750932,1774192255379,-500.0,0.00016438,2]
[408750933,1774192255389,-500.0,0.00016438,2]
[408750934,1774192255398,-500.0,0.00016438,2]
[408750935,1774192255407,-500.0,0.00016438,2]
[408750936,1774192255416,-500.0,0.00016438,2]
[408750937,1774192255425,-500.0,0.00016438,2]
[408750938,1774192255434,-500.0,0.00016438,2]
[408750939,1774192255443,-500.0,0.00016438,2]
[408750940,1774192255452,-500.0,0.00016438,2]
[408750941,1774192255462,-500.0,0.00016438,2]
[408750942,1774192255471,-500.0,0.00016438,2]
[408750943,1774192255480,-500.0,0.00016438,2]
[408750944,1774192255490,-500.0,0.00016438,2]
[408750945,1774192255499,-500.0,0.00016438,2]
[408750946,1774192255509,-500.0,0.00016438,2]
[408750947,1774192255518,-500.0,0.00016438,2]
[408750948,1774192255528,-500.0,0.00016438,2]
[408750949,1774192255537,-500.0,0.00016438,2]
[408750950,1774192255547,-500.0,0.00016438,2]
[408750951,1774192255557,-500.0,0.00016438,2]
[408750952,1774192255566,-500.0,0.00016438,2]
[408750953,1774192255575,-275.39935502,0.00016438,2]
[408750954,1774192255584,-250.0,0.00016438,2]
[408750955,1774192255594,-2066.11,0.00016438,2]
[408750956,1774192255602,-200.0,0.00016438,2]
[408750957,1774192255611,-151.0,0.00016438,2]
[408750958,1774192255620,-151.0,0.00016438,2]
[408750959,1774192255629,-151.0,0.00016438,2]
[408750960,1774192255638,-151.0,0.00016438,2]
[408750961,1774192255648,-151.0,0.00016438,2]
[408750962,1774192255658,-151.0,0.00016438,2]
[408750963,1774192255667,-151.0,0.00016438,2]
[408750964,1774192255677,-692.407875,0.00016438,2]
[408750965,1774192255686,-692.407875,0.00016438,2]
[408750966,1774192256046,-692.407875,0.00016438,2]
[408750967,1774192256057,-692.407875,0.00016438,2]
[408750968,1774192256067,-692.407875,0.00016438,2]
[408750969,1774192256076,-692.407875,0.00016438,2]
[408750970,1774192256085,-692.407875,0.00016438,2]
[408750971,1774192256095,-692.407875,0.00016438,2]
[408750972,1774192256104,-173.796008,0.00016438,2]
[408750973,1774192256113,-173.796008,0.00016438,2]
[408750974,1774192256123,-173.796008,0.00016438,2]
[408750975,1774192256132,-173.796008,0.00016438,2]
[408750976,1774192256142,-173.796008,0.00016438,2]
[408750977,1774192256152,-173.796008,0.00016438,2]
[408750978,1774192256161,-173.796008,0.00016438,2]
[408750979,1774192256172,-173.796008,0.00016438,2]
[408750980,1774192256183,-151.285302,0.00016438,2]
[408750981,1774192256193,-151.0,0.00016438,2]
[408750982,1774192256204,-151.0,0.00016438,2]
[408750983,1774192256214,-151.0,0.00016438,2]
[408750984,1774192256224,-151.0,0.00016438,2]
[408750985,1774192256236,-151.0,0.00016438,2]
[408750986,1774192256247,-151.0,0.00016438,2]
[408750987,1774192256256,-151.0,0.00016438,2]
[408750988,1774192256266,-151.0,0.00016438,2]
[408750989,1774192256275,-151.0,0.00016438,2]
[408750990,1774192256285,-151.0,0.00016438,2]
[408750991,1774192256300,-166.99649,0.00016438,2]
[408750992,1774192256319,-289.12097407,0.00016439,2]
[408750993,1774192256330,-150.0,0.00016447,2]
[408750994,1774192256339,-200.0,0.00016485,2]
[408750995,1774192256353,-200.0,0.00016485,2]
[408750996,1774192256362,-200.0,0.00016485,2]
[408750997,1774192256373,-901.36,0.000165,2]
[408750998,1774192256384,-2000.0,0.000165,2]
[408750999,1774192256394,-1310.93525358,0.00016511,2]
[408751000,1774192256404,-350.0,0.00016518,2]
[408751001,1774192256414,-1000.0,0.00016521,2]
[408751002,1774192256424,-998.52273734,0.00016521,2]
[408751003,1774192256433,-150.0,0.00016521,2]
[408751004,1774192256443,-10409.38528038,0.00016534,2]
[408751005,1774192256452,-491.0,0.00016544,2]
[408751006,1774192256461,-150.0,0.00016574,2]
[408751007,1774192256470,-151.0,0.00016596,2]
[408751008,1774192256480,-233.51889341,0.00016596,2]
[408751009,1774192256490,-200.0,0.00016596,2]
[408751010,1774192256499,-201.93286099,0.00016596,2]
[408751011,1774192256508,-859.80605061,0.00016596,2]
[408751012,1774192256518,-773.2413689,0.00016596,2]
[408751013,1774192256527,-323.68682015,0.00016596,2]
[408751014,1774192256536,-491.0,0.00016602,2]
[408751015,1774192256545,-491.0,0.00016603,2]
[408751016,1774192256554,-491.0,0.00016605,2]
[408751017,1774192256563,-150.0,0.00016606,2]
[408751018,1774192256572,-350.0,0.00016627,2]
[408751019,1774192256582,-150.0,0.00016645,2]
[408751020,1774192256591,-150.0,0.00016645,2]
[408751021,1774192256600,-200.0,0.0001665,2]
[408751022,1774192256609,-200.0,0.0001665,2]
[408751023,1774192256619,-200.0,0.0001665,2]
[408751024,1774192256627,-491.0,0.00016657,2]
[408751025,1774192256637,-491.0,0.00016659,2]
[408751026,1774192256646,-499.99,0.0001666,2]
[408751027,1774192256655,-499.99,0.0001666,2]
[408751028,1774192256664,-649.24,0.0001666,2]
[408751029,1774192256673,-499.99,0.0001666,2]
[408751030,1774192256682,-499.99,0.0001666,2]
[408751031,1774192256691,-369.96,0.0001666,2]
[408751032,1774192256701,-4000.0,0.0001667,2]
[408751033,1774192256710,-1746.61,0.000167,2]
[408751034,1774192256719,-1991.25,0.000167,2]
[408751035,1774192256729,-166.92,0.00016712,2]
[408751036,1774192256739,-350.0,0.00016739,2]
[408751037,1774192256748,-150.0,0.0001677,2]
[408751038,1774192256758,-150.0,0.00016781,2]
[408751039,1774192256767,-2000.0,0.000168,2]
[408751040,1774192256777,-254.72603243,0.00016823,2]
[408751041,1774192256787,-150.0,0.00016829,2]
[408751042,1774192256796,-150.0,0.0001683,2]
[408751043,1774192256806,-150.0,0.0001683,7]
[408751044,1774192256815,-150.0,0.00016834,2]
[408751045,1774192256825,-500.0,0.00016839,4]
[408751046,1774192256835,-150.0,0.00016839,2]
[408751047,1774192256844,-436.52,0.00016843,2]
[408751048,1774192256854,-350.0,0.0001685,2]
[408751049,1774192256862,-150.0,0.00016866,2]
[408751050,1774192256872,-868.0,0.00016874,2]
[408751051,1774192256882,-153.478108,0.00016887,2]
[408751052,1774192256891,-150.0,0.00016889,2]
[408751053,1774192256901,-350.0,0.00016892,2]
[408751054,1774192256910,-150.0,0.00016897,2]
[408751055,1774192256919,-400.0,0.000169,6]
[408751056,1774192256929,-2000.0,0.000169,2]
[408751057,1774192256939,-850.45,0.00016914,2]
[408751058,1774192256949,-436.52,0.00016954,2]
[408751059,1774192256958,-868.0,0.00016971,2]
[408751060,1774192256967,-868.0,0.00016991,2]
[408751061,1774192256977,-150.0,0.00016993,2]
[408751062,1774192256986,-500.0,0.00016999,2]
[408751063,1774192256996,-300.0,0.00016999,2]
[408751064,1774192257005,-300.0,0.00016999,2]
[408751065,1774192257015,-300.0,0.00016999,2]
[408751066,1774192257025,-300.0,0.00016999,2]
[408751067,1774192257035,-396.0194569,0.00016999,2]
[408751068,1774192257045,-371.0,0.00017,2]
[408751069,1774192257054,-65433.36026479,0.00017,2]
[408751070,1774192257117,-666.26855049,0.000157,2]
[408751071,1774192332792,233.49,9.457e-05,2]
[408751072,1774192353164,506.055433,0.00017,60]
[408751073,1774192360349,417.45,9.457e-05,2]
[408751074,1774192386827,267.0,9.457e-05,3]
[408751075,1774192394856,158.0,9.457e-05,3]
[408751076,1774192413348,8525.42,9.457e-05,2]
[408751077,1774192447012,261.0,9.457e-05,3]
[408751078,1774192468605,485.09,0.00012482,30]
[408751079,1774192542212,150.0,9.457e-05,2]
[408751080,1774192612388,171.95,9e-05,2]
[408751081,1774192663958,478.91,0.00011541,30]
[408751082,1774192664342,957.83,0.00012245,30]
[408751083,1774192691940,200.0,9.457e-05,2]
[408751084,1774192824007,10000.01,9.369e-05,2]
[408751085,1774192824029,10000.01,9.369e-05,2]
[408751086,1774192824050,10000.01,9.369e-05,2]
[408751087,1774192824072,10000.01,9.369e-05,2]
[408751088,1774192824097,1200.0,9.369e-05,2]
[408751089,1774192824121,300.0,9.369e-05,2]
[408751090,1774192824145,2110.0,9.369e-05,2]
[408751091,1774192824169,3753.64074369,9.369e-05,2]
[408751092,1774192824192,256.38872165,9.369e-05,2]
[408751093,1774192824216,573.80278632,9.369e-05,2]
[408751094,1774192824239,722.8955016,9.369e-05,2]
[408751095,1774192824262,1649.46901541,9.369e-05,2]
[408751096,1774192824285,153.82161932,9.369e-05,2]
[408751097,1774192824307,160.11357121,9.369e-05,2]
[408751098,1774192824330,186.42007747,9.369e-05,2]
[408751099,1774192824354,102245.82796333,9.369e-05,2]
[408751100,1774192866987,248.0,9.369e-05,3]
[408751101,1774192888718,159.0,9.369e-05,3]
[408751102,1774192894511,-300.0,9.944e-05,2]
[408751103,1774192894540,-400.80810781,9.945e-05,2]
[408751104,1774192894568,-1200.0,9.945e-05,2]
[408751105,1774192894595,-300.0,9.945e-05,2]
[408751106,1774192894624,-1200.0,9.945e-05,2]
[408751107,1774192894653,-250.0,9.945e-05,2]
[408751108,1774192894681,-250.0,9.946e-05,2]
[408751109,1774192894708,-190.03725788,9.946e-05,2]
[408751110,1774192894736,-218.70538121,9.992e-05,2]
[408751111,1774192894805,-2585.28602517,0.00010044,2]
[408751112,1774192894835,-2329.43794966,0.0001005,2]
[408751113,1774192894884,-170.56205034,0.0001005,2]
[408751114,1774192894914,-150.0,0.00010139,2]
[408751115,1774192894944,-3635.07589932,0.00010139,2]
[408751116,1774192895022,-2088.73410068,0.00010139,2]
[408751117,1774192895051,-273.611,0.00010139,2]
[408751118,1774192897845,-8358.57033574,0.0001014,2]
[408751119,1774192897951,-10000.01,0.0001014,2]
[408751120,1774192898067,-10000.01,0.0001014,2]
[408751121,1774192900806,-10000.01,0.0001014,2]
[408751122,1774192900914,-10000.01,0.0001014,2]
[408751123,1774192901014,-10000.01,0.0001014,2]
[408751124,1774192906306,833.40724713,9.369e-05,2]
[408751125,1774192906341,1065.99,9.369e-05,2]
[408751126,1774192906400,7893.7120835,9.369e-05,2]
[408751127,1774192927359,235.0,9.369e-05,3]
[408751128,1774192933165,158.0,9.369e-05,3]
[408751129,1774192995903,224.0,9.369e-05,3]
[408751130,1774193009062,159.0,9.369e-05,3]
[408751132,1774193045138,213.0,9.369e-05,3]
[408751133,1774193051602,159.0,9.369e-05,3]
[408751134,1774193084290,208.26,9.343e-05,2]
[408751135,1774193105224,202.0,9.343e-05,3]
[408751136,1774193111150,159.0,9.343e-05,3]
[408751137,1774193167293,166.66,9.586e-05,2]
[408751139,1774193171123,192.0,9.343e-05,3]
[408751140,1774193231238,182.0,9.343e-05,3]
[408751141,1774193335309,9459.35,9.5e-05,3]
[408751142,1774193335332,10000.01,9.5e-05,3]
[408751143,1774193335354,10000.01,9.5e-05,3]
[408751144,1774193335376,36406.06270604,9.5e-05,3]
[408751145,1774193346319,-300.0,9.499e-05,2]
[408751146,1774193349565,-9430.75,9.5e-05,3]
[408751147,1774193349713,-10000.01,9.5e-05,3]
[408751148,1774193349843,-10000.01,9.5e-05,3]
[408751156,1774193370898,-10000.01,9.5e-05,3]
[408751157,1774193371000,-10000.01,9.5e-05,3]
[408751158,1774193371124,-10000.01,9.5e-05,3]
[408751159,1774193371269,-10000.01,9.5e-05,3]
[408751160,1774193377092,500.0,9.27e-05,2]
[408751161,1774193383992,-10000.01,9.5e-05,3]
[408751162,1774193384008,-10000.01,9.5e-05,3]
[408751163,1774193384035,-10000.01,9.5e-05,3]
[408751164,1774193384166,-10000.01,9.5e-05,3]
[408751165,1774193385194,-10000.01,9.5e-05,3]
[408751166,1774193385352,-10000.01,9.5e-05,3]
[408751167,1774193385450,-10000.01,9.5e-05,3]
[408751168,1774193385560,-10000.01,9.5e-05,3]
[408751169,1774193401188,1200.0,9.499e-05,2]
[408751170,1774193401225,300.0,9.499e-05,2]
[408751171,1774193402466,150.0,9.499e-05,2]
[408751172,1774193406782,300.0,9.499e-05,2]
[408751176,1774193431470,-43119.98715882,9.5e-05,3]
[408751180,1774193431499,-1013.37765,9.5e-05,3]
[408751183,1774193431607,-4308.56609085,9.5e-05,3]
[408751184,1774193431619,-203248.53036627,9.5e-05,3]
[408751185,1774193431631,-164.0,9.5e-05,3]
[408751186,1774193431642,-156.0,9.5e-05,3]
[408751187,1774193431652,-5000.0,9.701e-05,2]
[408751188,1774193431662,-250.0,9.902e-05,2]
[408751189,1774193431672,-166.66,9.902e-05,2]
[408751190,1774193431681,-250.0,9.951e-05,2]
[408751191,1774193431690,-215.18261324,0.0001,2]
[408751192,1774193431700,-344.93593138,0.0001,2]
[408751193,1774193431709,-358.64342148,0.0001,2]
[408751194,1774193431719,-1942.88037675,0.0001,2]
[408751195,1774193431728,-250.0,0.00010008,2]
[408751196,1774193431738,-78870.6957,0.00010044,2]
[408751197,1774193431747,-2500.0,0.00010048,2]
[408751198,1774193431756,-1421.13675314,0.0001005,2]
[408751199,1774193431766,-581.96471682,0.00010073,2]
[408751200,1774193431776,-515.73078048,0.00010073,2]
[408751201,1774193431785,-2108.6971998,0.00010073,2]
[408751202,1774193431795,-1000.0,0.00010139,2]
[408751203,1774193431804,-9999.99,0.00010143,2]